bitfinex/quotes_SOLUSD_20240622
["timestamp","ask_amount","ask_price","bid_price","bid_amount"]
[1719060576737,13.9369,134.65,134.62,0.17]
[1719060576938,13.9369,134.65,134.6,6.85]
[1719060577842,13.9373,134.64,134.6,0.34]
[1719060578041,13.9373,134.64,134.59,0.34]
[1719060578968,13.9373,134.64,134.59,7.7699]
[1719060579163,6.51,134.64,134.59,7.7699]
[1719060580060,13.9372,134.64,134.59,7.7699]
[1719060580263,13.9372,134.64,134.59,0.34]
[1719060580649,6.51,134.63,134.59,0.34]
[1719060581068,13.9377,134.63,134.59,0.34]
[1719060581274,6.51,134.63,134.59,0.34]
[1719060581459,13.9378,134.63,134.58,6.85]
[1719060581769,6.51,134.63,134.58,14.2804]
[1719060582866,13.9377,134.63,134.58,0.34]
[1719060583165,6.51,134.63,134.58,6.85]
[1719060583369,6.51,134.63,134.58,0.34]
[1719060583570,6.51,134.63,134.58,6.85]
[1719060583751,6.51,134.63,134.58,14.2801]
[1719060585073,13.938,134.63,134.58,0.17]
[1719060585765,13.9384,134.62,134.58,0.17]
[1719060585973,6.51,134.62,134.58,0.17]
[1719060586364,6.51,134.62,134.58,7.6005]
[1719060586878,6.51,134.63,134.58,14.1105]
[1719060587168,6.51,134.63,134.59,0.17]
[1719060587563,13.9381,134.63,134.59,0.17]
[1719060587753,13.9381,134.63,134.58,0.34]
[1719060588171,7.4281,134.63,134.58,0.34]
[1719060588353,13.9381,134.63,134.58,0.34]
[1719060589265,13.9381,134.63,134.58,6.85]
[1719060591380,7.4283,134.62,134.58,6.85]
[1719060591679,7.4278,134.63,134.58,6.85]
[1719060591858,13.9378,134.63,134.58,6.85]
[1719060592060,7.4284,134.62,134.58,0.34]
[1719060593256,13.9384,134.62,134.58,0.34]
[1719060595864,13.9384,134.62,134.57,15.0289]
[1719060596183,6.51,134.61,134.57,15.0289]
[1719060596676,13.9389,134.61,134.57,15.0289]
[1719060597081,6.51,134.61,134.57,15.0289]
[1719060597262,6.51,134.61,134.58,0.34]
[1719060598085,13.9401,134.59,134.57,0.17]
[1719060598379,6.51,134.58,134.57,0.17]
[1719060599295,6.51,134.58,134.56,0.8782272]
[1719060599477,27.431,134.57,134.56,0.8782272]
[1719060599661,33.941,134.57,134.56,0.8782272]
[1719060600967,27.431,134.57,134.56,0.8782272]
[1719060601168,33.941,134.57,134.56,0.8782272]
[1719060603161,26.51,134.57,134.56,0.8782272]
[1719060603381,27.431,134.57,134.56,0.8782272]
[1719060603585,33.941,134.57,134.56,0.8782272]
[1719060609889,5.96883088,134.6,134.56,0.8782272]
[1719060610091,26.51,134.59,134.56,0.8782272]
[1719060610296,27.4303,134.59,134.56,0.8782272]
[1719060610484,13.9406,134.58,134.56,0.8782272]
[1719060610873,7.4306,134.58,134.56,0.8782272]
[1719060611074,13.941,134.57,134.56,0.8782272]
[1719060612279,7.431,134.57,134.56,0.8782272]
[1719060612480,13.941,134.57,134.56,0.8782272]
[1719060613000,33.941,134.57,134.56,0.8782272]
[1719060614299,27.431,134.57,134.56,0.8782272]
[1719060614492,33.941,134.57,134.56,0.8782272]
[1719060616581,35.72592998,134.57,134.56,0.8782272]
[1719060629101,41.67356088,134.57,134.56,0.8782272]
[1719060634904,27.431,134.57,134.56,0.8782272]
[1719060635110,33.941,134.57,134.56,0.8782272]
[1719060637001,20.0,134.57,134.56,0.8782272]
[1719060637312,13.9408,134.58,134.56,1.2182272]
[1719060638525,7.4308,134.58,134.56,1.2182272]
[1719060639224,7.4308,134.58,134.57,0.17]
[1719060639425,7.4308,134.58,134.57,0.34]
[1719060640711,7.431,134.57,134.56,0.8782272]
[1719060640915,13.941,134.57,134.56,0.8782272]
[1719060641230,13.941,134.57,134.56,1.2182272]
[1719060642016,13.941,134.57,134.56,0.8782272]
[1719060644626,7.431,134.57,134.56,0.8782272]
[1719060644822,13.941,134.57,134.56,0.8782272]
[1719060645422,52.5186,134.57,134.56,0.8782272]
[1719060650238,20.0,134.57,134.56,0.8782272]
[1719060650442,26.51,134.58,134.56,0.8782272]
[1719060650618,7.4299,134.6,134.56,0.8782272]
[1719060650932,13.31625566,134.62,134.57,16.6388]
[1719060651136,6.51,134.62,134.58,0.34]
[1719060651539,13.9383,134.62,134.58,0.34]
[1719060651837,20.0,134.61,134.58,0.34]
[1719060652010,6.51,134.61,134.58,0.34]
[1719060654823,7.4289,134.61,134.58,0.34]
[1719060655035,13.9389,134.61,134.58,0.34]
[1719060655234,7.4289,134.61,134.58,0.34]
[1719060655626,13.9389,134.61,134.58,0.34]
[1719060656017,6.51,134.6,134.58,0.34]
[1719060657530,13.9394,134.6,134.57,16.6388]
[1719060659522,7.4294,134.6,134.57,16.6388]
[1719060660942,6.51,134.62,134.58,0.34]
[1719060661151,20.0,134.61,134.58,0.34]
[1719060661934,7.4286,134.62,134.58,0.34]
[1719060662445,7.4279,134.63,134.59,6.51]
[1719060662646,7.4279,134.63,134.6,0.34]
[1719060663327,7.4273,134.64,134.6,0.34]
[1719060663532,7.4273,134.64,134.6,12.8508]
[1719060664145,7.4263,134.66,134.61,23.1488]
[1719060664324,7.4263,134.66,134.62,6.85]
[1719060665145,7.4263,134.66,134.62,0.34]
[1719060666642,6.51,134.67,134.62,6.85]
[1719060666643,13.9357,134.67,134.62,6.85]
[1719060666824,7.4257,134.67,134.63,6.51]
[1719060667023,7.4257,134.67,134.64,0.34]
[1719060668774,13.9357,134.67,134.64,0.34]
[1719060668951,7.4261,134.66,134.63,0.34]
[1719060669325,13.9357,134.67,134.63,0.34]
[1719060669948,6.51,134.67,134.63,0.34]
[1719060670349,13.9356,134.67,134.63,0.34]
[1719060672043,7.4263,134.66,134.63,0.34]
[1719060672249,13.9363,134.66,134.64,0.17]
[1719060672452,13.9363,134.66,134.62,0.34]
[1719060672830,7.4263,134.66,134.62,0.34]
[1719060673026,13.9363,134.66,134.62,0.34]
[1719060674264,6.51,134.66,134.62,0.34]
[1719060675353,13.9367,134.65,134.61,16.6388]
[1719060675538,6.51,134.63,134.61,16.6388]
[1719060675861,7.4283,134.62,134.61,16.6388]
[1719060676030,13.9379,134.63,134.6,6.0008]
[1719060677160,7.4288,134.61,134.58,15.9154]
[1719060677460,13.9388,134.61,134.58,15.9154]
[1719060677757,6.51,134.61,134.58,15.9154]
[1719060679437,13.9388,134.61,134.59,0.34]
[1719060679942,6.51,134.61,134.59,0.34]
[1719060680437,13.9384,134.62,134.59,0.34]
[1719060682360,7.4288,134.61,134.59,0.34]
[1719060683138,13.9385,134.62,134.59,0.34]
[1719060685356,7.4285,134.62,134.59,0.34]
[1719060685845,13.9385,134.62,134.59,0.34]
[1719060687662,7.4289,134.61,134.59,0.34]
[1719060690246,13.9384,134.62,134.59,0.34]
[1719060692146,7.4288,134.61,134.59,0.34]
[1719060693879,24.43454648,134.65,134.59,0.34]
[1719060694067,24.43454648,134.65,134.59,6.85]
[1719060694068,7.4281,134.63,134.59,6.85]
[1719060694242,7.4281,134.63,134.59,0.34]
[1719060694445,6.51,134.64,134.59,0.34]
[1719060694446,7.4272,134.64,134.59,0.34]
[1719060694746,7.4272,134.64,134.6,6.51]
[1719060694941,7.4272,134.64,134.61,0.34]
[1719060695158,33.92805299,134.68,134.61,0.34]
[1719060695159,7.4266,134.65,134.61,6.85]
[1719060696973,13.9366,134.65,134.61,0.34]
[1719060701460,7.4266,134.65,134.61,0.34]
[1719060701665,13.9366,134.65,134.61,0.34]
[1719060701884,7.4266,134.65,134.61,6.85]
[1719060702783,39.94503647,134.68,134.61,0.34]
[1719060702784,7.428,134.63,134.61,0.34]
[1719060703164,7.428,134.63,134.62,0.17]
[1719060703366,7.428,134.63,134.6,0.34]
[1719060704461,7.428,134.63,134.58,15.9154]
[1719060704664,7.428,134.63,134.59,6.51]
[1719060704860,7.4274,134.64,134.59,6.51]
[1719060705059,7.4274,134.64,134.6,6.51]
[1719060705288,13.9374,134.64,134.59,6.51]
[1719060705869,13.9374,134.64,134.6,0.34]
[1719060706270,6.51,134.64,134.6,0.34]
[1719060706482,7.4277,134.63,134.6,0.34]
[1719060707983,7.4277,134.63,134.59,0.34]
[1719060710183,13.9374,134.64,134.59,0.34]
[1719060710491,7.4274,134.64,134.59,14.2799]
[1719060710701,13.9368,134.65,134.59,14.2799]
[1719060710876,20.0,134.64,134.6,6.51]
[1719060711069,20.0,134.64,134.61,0.34]
[1719060711400,27.4272,134.64,134.61,0.34]
[1719060713171,7.4278,134.63,134.61,0.34]
[1719060713366,26.51,134.64,134.61,0.34]
[1719060713583,7.4283,134.62,134.6,0.34]
[1719060713988,7.4279,134.63,134.6,0.34]
[1719060714179,7.4279,134.63,134.61,0.17]
[1719060714379,7.4279,134.63,134.59,0.34]
[1719060715997,38.5681,134.64,134.58,15.9154]
[1719060716184,6.51,134.62,134.58,15.9154]
[1719060716888,7.4289,134.61,134.58,15.9154]
[1719060717399,7.4289,134.61,134.59,0.17]
[1719060717904,13.9398,134.6,134.56,0.8782272]
[1719060718801,7.4299,134.59,134.56,0.8782272]
[1719060719811,13.9396,134.6,134.56,0.8782272]
[1719060720182,13.9396,134.6,134.57,0.34]
[1719060720399,7.4296,134.6,134.57,0.34]
[1719060720710,13.939,134.61,134.57,0.34]
[1719060721094,7.4294,134.6,134.57,0.34]
[1719060722786,13.939,134.61,134.57,0.34]
[1719060723296,7.4294,134.6,134.57,0.34]
[1719060723500,7.429,134.61,134.57,0.34]
[1719060723684,6.51,134.61,134.57,0.34]
[1719060723884,13.9385,134.62,134.57,6.85]
[1719060724086,20.0,134.61,134.57,14.2809]
[1719060724394,20.0,134.61,134.57,6.85]
[1719060724782,20.0,134.61,134.57,14.2809]
[1719060725002,13.9376,134.64,134.58,13.9404]
[1719060725211,27.4278,134.63,134.59,6.85]
[1719060725410,27.4278,134.63,134.6,0.17]
[1719060725590,20.0,134.63,134.6,0.17]
[1719060725782,7.4274,134.64,134.6,6.68]
[1719060725986,7.4274,134.64,134.61,0.17]
[1719060726401,7.4268,134.65,134.61,22.8763]
[1719060726602,7.4268,134.65,134.62,0.17]
[1719060727894,7.4268,134.65,134.62,6.68]
[1719060728093,7.4268,134.65,134.63,0.17]
[1719060729291,7.4272,134.64,134.63,0.17]
[1719060730012,7.4272,134.64,134.62,0.34]
[1719060730192,13.952,134.67,134.58,6.4745]
[1719060730193,6.51,134.65,134.58,6.4745]
[1719060730492,6.51,134.65,134.57,15.6801]
[1719060730493,7.4301,134.59,134.57,15.6801]
[1719060731109,7.4296,134.6,134.57,15.6801]
[1719060731697,7.4299,134.59,134.58,0.34]
[1719060733012,6.51,134.61,134.58,0.34]
[1719060733199,7.4294,134.6,134.58,0.34]
[1719060734598,13.9391,134.61,134.58,0.34]
[1719060735601,6.51,134.59,134.56,0.79903543]
[1719060735805,7.432,134.56,134.5,6.51]
[1719060736015,13.942,134.56,134.5,6.51]
[1719060736510,13.942,134.56,134.5,13.9448]
[1719060736905,7.4322,134.55,134.5,6.51]
[1719060737912,13.9417,134.56,134.5,13.9449]
[1719060738320,13.9417,134.56,134.52,0.17]
[1719060738504,6.51,134.56,134.52,0.17]
[1719060738709,6.51,134.54,134.49,22.1901]
[1719060739111,13.9424,134.55,134.49,29.6255]
[1719060739799,7.4324,134.55,134.49,23.1155]
[1719060739999,7.4318,134.56,134.51,11.1486147]
[1719060740220,20.0,134.55,134.52,0.34]
[1719060742516,20.0,134.55,134.52,6.85]
[1719060742714,20.0,134.56,134.52,6.85]
[1719060745502,27.4316,134.56,134.52,6.85]
[1719060746428,27.4316,134.56,134.52,6.5831]
[1719060746635,27.4316,134.56,134.52,13.0931]
[1719060747934,27.4316,134.56,134.52,6.5831]
[1719060751826,20.0,134.56,134.52,6.2431]
[1719060752409,26.51,134.56,134.52,6.2431]
[1719060752614,6.51,134.54,134.51,4.6386147]
[1719060752815,6.51,134.54,134.52,0.17]
[1719060753129,6.51,134.54,134.52,0.34]
[1719060753330,13.9429,134.54,134.52,0.34]
[1719060755014,7.4329,134.54,134.52,0.34]
[1719060755806,13.9423,134.55,134.52,0.34]
[1719060757129,7.4327,134.54,134.52,0.34]
[1719060758303,6.51,134.55,134.52,0.34]
[1719060758509,7.4329,134.54,134.52,0.34]
[1719060759836,7.4323,134.55,134.52,0.34]
[1719060760616,27.4318,134.56,134.52,0.34]
[1719060760823,33.9418,134.56,134.52,0.34]
[1719060762634,7.4322,134.55,134.52,0.34]
[1719060766729,27.4317,134.56,134.52,6.85]
[1719060766924,20.0,134.56,134.52,6.85]
[1719060767132,20.0,134.56,134.53,6.51]
[1719060767338,20.0,134.56,134.54,0.34]
[1719060768123,20.0,134.57,134.54,0.34]
[1719060768319,20.0,134.57,134.55,0.17]
[1719060768320,7.4316,134.56,134.55,0.17]
[1719060768625,7.4322,134.55,134.53,0.34]
[1719060770054,7.4318,134.56,134.53,0.34]
[1719060770227,7.4322,134.55,134.53,0.34]
[1719060770937,7.4322,134.55,134.54,0.17]
[1719060771145,7.4322,134.55,134.52,0.34]
[1719060771146,33.9422,134.55,134.52,0.34]
[1719060771329,13.9422,134.55,134.52,0.34]
[1719060771645,6.51,134.54,134.51,4.6386147]
[1719060771849,7.4336,134.53,134.51,4.6386147]
[1719060772023,13.9429,134.54,134.51,4.6386147]
[1719060772439,6.51,134.54,134.51,4.6386147]
[1719060773058,7.4327,134.54,134.51,4.6386147]
[1719060773237,7.4327,134.54,134.52,0.17]
[1719060773438,7.4327,134.54,134.52,0.34]
[1719060774337,13.9424,134.55,134.52,0.34]
[1719060774755,13.9424,134.55,134.51,4.6386147]
[1719060774931,13.9434,134.53,134.51,4.6386147]
[1719060775952,7.4334,134.53,134.51,4.6386147]
[1719060776525,33.9427,134.54,134.51,4.6386147]
[1719060776729,33.9427,134.54,134.52,0.34]
[1719060776945,26.51,134.54,134.52,0.34]
[1719060777752,20.0,134.54,134.52,0.34]
[1719060778267,27.4327,134.54,134.52,0.34]
[1719060779031,33.9427,134.54,134.52,0.34]
[1719060781855,33.9427,134.54,134.51,4.8086147]
[1719060782043,33.9427,134.54,134.52,0.34]
[1719060786159,7.4332,134.53,134.52,0.34]
[1719060787068,33.9429,134.54,134.52,0.34]
[1719060789665,33.9429,134.54,134.51,4.6386147]
[1719060789868,6.51,134.53,134.51,4.6386147]
[1719060791569,26.51,134.54,134.51,4.6386147]
[1719060791796,26.51,134.54,134.52,0.17]
[1719060792677,26.51,134.54,134.52,0.34]
[1719060793054,20.0,134.54,134.52,0.34]
[1719060794162,27.4327,134.54,134.52,0.34]
[1719060794779,20.0,134.54,134.52,0.34]
[1719060796176,27.4327,134.54,134.52,0.34]
[1719060797157,20.0,134.54,134.52,0.34]
[1719060801682,27.4327,134.54,134.52,0.34]
[1719060804469,20.0,134.54,134.52,0.34]
[1719060804784,27.4327,134.54,134.52,0.34]
[1719060809582,20.0,134.54,134.52,0.34]
[1719060809782,35.043,134.6,134.52,0.34]
[1719060810089,7.4312,134.57,134.53,6.51]
[1719060810270,20.0,134.56,134.54,0.34]
[1719060810667,7.4299,134.6,134.54,30.5817]
[1719060810884,6.51,134.6,134.55,6.51]
[1719060811185,6.51,134.6,134.54,16.6391]
[1719060811186,7.4299,134.59,134.56,0.34]
[1719060811367,7.4299,134.59,134.57,0.17]
[1719060812462,20.0,134.58,134.56,0.34]
[1719060812692,20.0,134.58,134.57,0.17]
[1719060812884,20.0,134.58,134.55,0.34]
[1719060814897,27.4305,134.58,134.55,0.34]
[1719060820079,27.4305,134.58,134.54,22.8091]
[1719060820080,20.0,134.58,134.54,16.2991]
[1719060820280,6.51,134.55,134.51,4.6386147]
[1719060820488,7.4327,134.54,134.51,4.6386147]
[1719060821408,6.51,134.55,134.51,4.6386147]
[1719060821409,7.4333,134.53,134.51,4.6386147]
[1719060822200,13.9428,134.54,134.51,4.6386147]
[1719060822511,20.0,134.53,134.51,4.6386147]
[1719060822683,20.0,134.53,134.52,0.34]
[1719060829105,7.4317,134.56,134.52,0.34]
[1719060829309,33.9423,134.55,134.52,0.34]
[1719060831009,7.4327,134.54,134.52,0.34]
[1719060833612,7.4327,134.54,134.51,4.6386147]
[1719060833816,13.9427,134.54,134.51,4.6386147]
[1719060834910,13.9427,134.54,134.52,0.17]
[1719060835112,7.4332,134.53,134.52,0.34]
[1719060835335,13.9432,134.53,134.52,0.34]
[1719060835530,33.9432,134.53,134.52,0.34]
[1719060836031,33.9432,134.53,134.52,0.17]
[1719060836234,33.9432,134.53,134.52,0.34]
[1719060836609,33.9432,134.53,134.51,4.6386147]
[1719060836801,20.0,134.52,134.51,4.6386147]
[1719060837005,20.0,134.52,134.51,4.9786147]
[1719060837513,33.9438,134.52,134.51,4.9786147]
[1719060837719,33.9438,134.52,134.51,4.8086147]
[1719060838516,26.51,134.52,134.51,4.8086147]
[1719060839456,20.0,134.52,134.51,4.8086147]
[1719060839925,20.0,134.52,134.51,4.9786147]
[1719060840409,27.4327,134.54,134.51,4.9786147]
[1719060840620,33.9427,134.54,134.52,0.34]
[1719060841596,20.0,134.54,134.52,0.34]
[1719060842530,20.0,134.55,134.52,0.34]
[1719060842947,27.4323,134.55,134.52,0.34]
[1719060843420,20.0,134.55,134.52,0.34]
[1719060845396,27.4324,134.55,134.52,0.34]
[1719060845602,33.9424,134.55,134.52,0.34]
[1719060848126,6.51,134.54,134.52,0.34]
[1719060850224,20.0,134.55,134.52,0.34]
[1719060850406,6.51,134.54,134.52,0.34]
[1719060850928,26.51,134.55,134.52,0.34]
[1719060854123,20.0,134.55,134.52,0.34]
[1719060854307,26.51,134.55,134.52,0.34]
[1719060855031,33.9421,134.55,134.52,0.34]
[1719060857914,7.4327,134.54,134.52,0.34]
[1719060859035,33.9423,134.55,134.52,0.34]
[1719060859439,7.4327,134.54,134.51,4.6386147]
[1719060859622,6.51,134.53,134.51,4.6386147]
[1719060860229,6.51,134.54,134.51,4.6386147]
[1719060860512,27.4323,134.55,134.51,4.6386147]
[1719060860513,33.9423,134.55,134.51,4.6386147]
[1719060860707,26.51,134.55,134.52,0.17]
[1719060860929,20.0,134.55,134.52,0.34]
[1719060861336,7.4312,134.57,134.52,0.34]
[1719060861337,26.51,134.56,134.52,0.34]
[1719060861528,33.9416,134.56,134.52,0.34]
[1719060862038,27.4316,134.56,134.52,0.34]
[1719060862237,33.9416,134.56,134.52,0.34]
[1719060865140,26.51,134.56,134.52,0.34]
[1719060867741,20.0,134.56,134.52,7.7737]
[1719060867945,26.51,134.57,134.52,14.2837]
[1719060868330,27.431,134.57,134.52,14.2837]
[1719060868640,33.941,134.57,134.52,14.2837]
[1719060870740,33.941,134.57,134.52,6.85]
[1719060876945,26.51,134.57,134.52,14.2838]
[1719060877659,26.51,134.57,134.52,7.7738]
[1719060877847,33.9411,134.57,134.52,6.85]
[1719060879050,27.4311,134.57,134.52,6.85]
[1719060879258,26.51,134.57,134.52,14.2837]
[1719060879935,20.0,134.57,134.52,14.2837]
[1719060880745,27.431,134.57,134.52,14.2837]
[1719060882356,27.431,134.57,134.52,6.85]
[1719060882535,20.0,134.57,134.53,6.51]
[1719060882736,20.0,134.57,134.54,0.34]
[1719060883360,27.431,134.57,134.54,0.34]
[1719060888235,20.0,134.57,134.54,0.34]
[1719060888440,20.0,134.57,134.55,0.17]
[1719060888653,20.0,134.57,134.53,0.34]
[1719060889358,27.431,134.57,134.53,0.34]
[1719060891163,19.57298761,134.57,134.53,0.34]
[1719060891551,12.14198761,134.57,134.53,0.34]
[1719060892868,13.9407,134.58,134.53,0.34]
[1719060896051,7.4311,134.57,134.53,0.34]
[1719060896975,13.9411,134.57,134.53,0.34]
[1719060897875,6.51,134.57,134.53,0.34]
[1719060901552,13.9407,134.58,134.53,0.34]
[1719060903767,7.431,134.57,134.53,0.34]
[1719060904067,13.941,134.57,134.53,0.34]
[1719060905477,6.51,134.57,134.53,0.34]
[1719060905796,7.4306,134.58,134.53,0.34]
[1719060906087,13.9406,134.58,134.53,0.34]
[1719060907651,7.4307,134.58,134.53,0.34]
[1719060907856,13.9407,134.58,134.53,0.34]
[1719060912078,7.4311,134.57,134.53,0.34]
[1719060912472,7.4311,134.57,134.52,0.34]
[1719060914386,13.9407,134.58,134.52,7.7738]
[1719060916586,6.51,134.58,134.53,7.4332]
[1719060916774,6.51,134.58,134.54,0.34]
[1719060918575,13.9405,134.58,134.53,0.34]
[1719060918776,13.9405,134.58,134.55,0.17]
[1719060918980,13.9405,134.58,134.53,0.34]
[1719060932379,13.9405,134.58,134.54,15.3844]
[1719060932580,13.9405,134.58,134.55,0.34]
[1719060933083,7.4305,134.58,134.55,0.34]
[1719060934597,18.5678,134.65,134.55,6.63]
[1719060934803,7.4279,134.63,134.58,6.51]
[1719060935009,7.4279,134.63,134.59,0.34]
[1719060935381,13.9374,134.64,134.59,0.34]
[1719060935581,7.4278,134.63,134.59,0.34]
[1719060935804,7.4278,134.63,134.59,6.85]
[1719060936901,13.9378,134.63,134.59,0.34]
[1719060939694,13.9378,134.63,134.6,0.17]
[1719060939898,13.9378,134.63,134.58,6.85]
[1719060940099,7.4273,134.64,134.58,14.2804]
[1719060940295,6.51,134.63,134.58,14.2804]
[1719060940810,13.9373,134.64,134.59,12.8]
[1719060940999,13.9373,134.64,134.6,0.34]
[1719060941197,6.51,134.64,134.6,0.34]
[1719060944106,16.51798809,134.66,134.6,6.85]
[1719060944303,27.4267,134.65,134.61,15.3844]
[1719060944499,26.51,134.65,134.62,0.34]
[1719060944705,20.0,134.65,134.62,0.34]
[1719060946210,23.02798809,134.66,134.62,0.34]
[1719060946390,16.51798809,134.66,134.62,0.34]
[1719060946591,23.02798809,134.66,134.62,0.34]
[1719060947015,16.51798809,134.66,134.62,0.34]
[1719060947205,23.02798809,134.66,134.62,0.34]
[1719060947701,16.51798809,134.66,134.62,0.34]
[1719060948823,23.02798809,134.66,134.62,0.34]
[1719060949813,6.5706467,134.7,134.62,0.34]
[1719060950029,280.4,134.73,134.62,0.34]
[1719060950030,269.49178809,134.73,134.65,15.3844]
[1719060950324,6.51,134.7,134.66,0.34]
[1719060950734,13.9342,134.7,134.66,0.34]
[1719060951426,7.4244,134.69,134.66,0.34]
[1719060953706,7.424,134.7,134.66,0.34]
[1719060957031,13.9335,134.71,134.66,0.34]
[1719060958418,7.4235,134.71,134.66,0.34]
[1719060958617,6.51,134.7,134.66,0.34]
[1719060959526,13.9335,134.71,134.66,0.34]
[1719060963430,13.9339,134.7,134.66,0.34]
[1719060963818,6.51,134.69,134.66,0.34]
[1719060965737,6.51,134.7,134.66,0.34]
[1719060966927,13.934,134.7,134.66,0.34]
[1719060968729,6.51,134.7,134.66,0.34]
[1719060969829,6.51,134.7,134.66,7.7659]
[1719060970014,27.4228,134.72,134.66,7.7659]
[1719060970015,6.51,134.71,134.67,7.4254]
[1719060970215,6.51,134.71,134.68,0.34]
[1719060970423,6.51,134.71,134.69,0.17]
[1719060970735,6.51,134.71,134.68,0.17]
[1719060971032,6.51,134.71,134.67,0.17]
[1719060971834,13.9334,134.71,134.67,0.17]
[1719060972736,13.934,134.7,134.67,0.17]
[1719060972937,13.934,134.7,134.66,0.34]
[1719060975443,6.51,134.7,134.66,0.34]
[1719060977641,6.51,134.69,134.65,15.3844]
[1719060978741,6.51,134.66,134.63,6.29]
[1719060978915,6.51,134.66,134.61,15.4935]
[1719060978916,6.51,134.65,134.61,15.4935]
[1719060979121,7.4262,134.66,134.61,15.4935]
[1719060979334,6.51,134.64,134.61,15.4935]
[1719060981351,6.51,134.64,134.62,0.34]
[1719060986219,6.51,134.66,134.62,0.34]
[1719060987146,13.9361,134.66,134.62,0.34]
[1719060987844,6.51,134.66,134.62,0.34]
[1719060988524,13.9361,134.66,134.62,0.34]
[1719060990654,7.4253,134.68,134.62,6.85]
[1719060990825,20.0,134.67,134.62,6.85]
[1719060991256,27.4255,134.67,134.62,6.85]
[1719060991918,33.9355,134.67,134.62,6.85]
[1719060992646,7.4261,134.66,134.62,0.34]
[1719060993033,13.9361,134.66,134.62,0.34]
[1719060993347,6.51,134.66,134.62,0.34]
[1719060993553,20.0,134.67,134.62,6.85]
[1719060993855,26.51,134.67,134.62,14.2782]
[1719060994347,20.0,134.67,134.62,14.2782]
[1719060994549,20.0,134.67,134.63,6.51]
[1719060994750,20.0,134.67,134.64,0.34]
[1719060996245,13.935,134.68,134.64,0.34]
[1719060996741,7.425,134.68,134.64,0.34]
[1719060996945,6.51,134.67,134.64,0.34]
[1719060997153,6.51,134.67,134.65,0.17]
[1719060997343,6.51,134.67,134.63,0.34]
[1719060997344,13.9355,134.67,134.63,0.34]
[1719060997839,7.4251,134.68,134.63,0.34]
[1719060998039,6.51,134.67,134.63,0.34]
[1719061000731,13.9351,134.68,134.63,0.34]
[1719061000932,6.51,134.67,134.63,0.34]
[1719061001431,13.41800393,134.71,134.64,7.4267]
[1719061001639,27.4239,134.7,134.65,0.34]
[1719061001853,33.9339,134.7,134.65,0.34]
[1719061002861,7.4244,134.69,134.65,0.34]
[1719061003177,20.0,134.68,134.65,0.34]